bitfinex/quotes_ETHUSD_20220309
["timestamp","ask_amount","ask_price","bid_price","bid_amount"]
[1646831549162,0.029168,2737.3,2737.2,3.9984]
[1646831549966,0.029168,2737.3,2737.2,1.0]
[1646831553208,1.83025312,2737.4,2737.2,1.0]
[1646831553209,1.85825412,2737.4,2737.2,1.0]
[1646831553609,1.8547176,2737.4,2737.2,1.0]
[1646831553811,0.029168,2737.3,2737.2,1.0]
[1646831554011,1.83025972,2737.4,2737.2,1.0]
[1646831554214,3.5,2737.3,2737.2,1.0]
[1646831554412,3.529168,2737.3,2737.2,1.0]
[1646831555112,0.913565,2737.1,2736.7,0.90117582]
[1646831555313,2.740695,2737.1,2736.7,0.90117582]
[1646831555519,0.029168,2736.9,2736.7,0.90117582]
[1646831555718,3.65426,2737.0,2736.7,0.90117582]
[1646831556117,0.91356,2736.9,2736.7,0.90117582]
[1646831556358,1.8271119,2736.9,2736.6,0.90117582]
[1646831556760,1.8271119,2736.9,2736.7,0.90117582]
[1646831557360,0.91356,2736.9,2736.7,0.90117582]
[1646831558562,1.8270099,2736.9,2736.6,0.90117582]
[1646831558759,1.8270099,2736.9,2736.7,0.90117582]
[1646831559360,1.8270099,2736.9,2736.6,0.90117582]
[1646831560014,1.8270099,2736.9,2736.5,2.89957582]
[1646831560404,3.5,2736.8,2736.4,0.90117582]
[1646831560603,5.3272812,2736.8,2736.4,0.90117582]
[1646831560804,3.6546212,2736.8,2736.3,0.90117582]
[1646831561408,5.5111292,2736.8,2736.3,0.90117582]
[1646831561607,8.9819612,2736.8,2736.2,3.89957582]
[1646831561810,0.029168,2736.7,2736.2,3.89957582]
[1646831562412,0.942828,2736.7,2736.2,3.89957582]
[1646831562609,1.82732,2736.7,2736.2,0.90117582]
[1646831562811,1.856488,2736.7,2736.2,0.90117582]
[1646831563010,0.029168,2736.6,2736.2,0.90117582]
[1646831563311,0.029168,2736.6,2736.0,0.90117582]
[1646831563312,0.9137287,2736.3,2736.0,0.90117582]
[1646831563512,0.029168,2736.2,2735.9,0.90117582]
[1646831563955,2.7691797,2736.3,2735.9,0.90117582]
[1646831564154,3.0691797,2736.3,2735.9,0.90117582]
[1646831564355,1.82751,2736.1,2735.9,0.90117582]
[1646831564555,1.05896026,2736.1,2735.9,0.90117582]
[1646831564754,0.029168,2736.2,2735.9,0.90117582]
[1646831565154,1.21375,2736.4,2735.9,0.90117582]
[1646831565356,0.029168,2736.3,2735.9,0.90117582]
[1646831565757,1.21375,2736.4,2735.8,1.9984]
[1646831565958,0.942848,2736.2,2735.8,2.89957582]
[1646831566159,0.91364,2736.1,2735.8,2.89957582]
[1646831566958,0.942808,2736.1,2735.8,2.89957582]
[1646831567259,0.91364,2736.1,2735.8,2.89957582]
[1646831567523,0.91364,2736.1,2735.8,1.9984]
[1646831567915,0.942808,2736.1,2735.8,1.9984]
[1646831568112,0.91364,2736.1,2735.8,3.92889019]
[1646831568514,0.91364,2736.1,2735.8,3.02771437]
[1646831570018,0.91364,2736.1,2735.8,3.92889019]
[1646831572357,0.91364,2736.1,2735.8,2.89957582]
[1646831572764,3.5,2736.0,2735.8,1.9984]
[1646831572961,3.5,2736.0,2735.5,2.9984]
[1646831572962,0.91396,2735.9,2735.5,2.9984]
[1646831573361,0.029168,2735.8,2735.5,2.9984]
[1646831573663,0.91396,2735.9,2735.5,2.9984]
[1646831573861,0.029168,2735.6,2735.5,2.9984]
[1646831574460,0.9139635,2735.7,2735.5,2.9984]
[1646831574461,0.9419645,2735.7,2735.5,2.9984]
[1646831574861,0.9139635,2735.7,2735.5,2.9984]
[1646831575105,1.8279035,2735.7,2735.5,2.9984]
[1646831575303,2.1279035,2735.7,2735.5,2.9984]
[1646831576707,0.91396,2735.9,2735.5,0.90117582]
[1646831576912,0.91372,2736.0,2735.5,0.90117582]
[1646831577109,0.91364,2736.1,2735.5,0.90117582]
[1646831577110,0.3,2735.9,2735.5,0.90117582]
[1646831577307,0.91364,2736.1,2735.6,0.90117582]
[1646831578753,0.91364,2736.1,2735.7,0.90117582]
[1646831579148,1.82726,2736.1,2735.7,0.90117582]
[1646831579348,1.82726,2736.1,2735.5,1.35253781]
[1646831579349,2.12726,2736.1,2735.8,0.90117582]
[1646831579753,2.12726,2736.1,2735.6,0.90117582]
[1646831580551,0.029168,2735.9,2735.6,0.90117582]
[1646831580852,0.91384,2735.8,2735.5,0.90117582]
[1646831581050,0.943008,2735.8,2735.5,0.90117582]
[1646831581254,0.029168,2735.6,2735.5,0.90117582]
[1646831581453,1.21384,2735.8,2735.7,0.01228096]
[1646831581655,1.241841,2735.8,2735.7,0.01228096]
[1646831581856,1.21384,2735.8,2735.7,0.01228096]
[1646831582054,1.243008,2735.8,2735.7,0.01228096]
[1646831582510,1.21384,2735.8,2735.7,0.01228096]
[1646831583302,3.8,2735.8,2735.3,0.89940529]
[1646831583502,3.829168,2735.8,2735.3,0.89940529]
[1646831583704,0.029168,2735.8,2735.3,0.89586322]
[1646831583900,0.9139425,2735.8,2735.3,0.89940718]
[1646831584100,0.9139425,2735.8,2735.4,0.89586322]
[1646831584300,0.9139425,2735.8,2735.4,1.87535341]
[1646831584502,0.91383,2735.8,2735.4,1.87535341]
[1646831584703,1.21383,2735.8,2735.5,0.89586322]
[1646831584900,1.21383,2735.8,2735.4,0.97949019]
[1646831584901,1.21383,2735.8,2735.4,1.87535341]
[1646831585201,1.21383,2735.8,2735.4,0.89586322]
[1646831585802,1.21383,2735.8,2735.3,0.89940711]
[1646831586002,1.21383,2735.8,2735.3,0.89586322]
[1646831586253,1.21383,2735.8,2735.3,1.76809776]
[1646831587158,1.21383,2735.8,2735.3,1.76455387]
[1646831587757,1.21383,2735.8,2735.3,0.89586322]
[1646831587963,2.127734,2735.8,2735.2,0.89586322]
[1646831588157,1.857068,2735.7,2735.1,0.89586322]
[1646831588359,1.8279,2735.7,2735.1,0.89586322]
[1646831588559,0.029168,2735.6,2735.1,0.89586322]
[1646831588759,2.156968,2735.6,2735.1,0.89586322]
[1646831589058,2.156968,2735.6,2735.1,0.80248322]
[1646831589258,2.1278,2735.6,2735.1,0.80248322]
[1646831589858,2.1278,2735.6,2735.2,0.00377557]
[1646831590103,3.04171,2735.6,2735.2,0.00377557]
[1646831590702,3.04171,2735.6,2735.0,1.9984]
[1646831590902,3.04171,2735.6,2735.1,0.146418]
[1646831591104,3.04171,2735.6,2735.3,0.00377553]
[1646831591606,3.04171,2735.6,2735.4,0.97613012]
[1646831591806,3.04171,2735.6,2735.3,0.00377553]
[1646831592006,3.04171,2735.6,2735.1,4.058658]
[1646831592407,3.04171,2735.6,2735.1,0.91384]
[1646831592607,3.04171,2735.6,2735.1,3.97730068]
[1646831593014,3.04171,2735.6,2735.1,5.32983849]
[1646831593210,3.04171,2735.6,2735.1,2.26637781]
[1646831594451,3.04171,2735.6,2735.1,0.91384]
[1646831594651,3.04171,2735.6,2735.2,0.00376039]
[1646831595051,3.04171,2735.6,2735.3,3.07451988]
[1646831595851,3.070878,2735.6,2735.3,3.07828021]
[1646831596251,3.070878,2735.6,2735.3,0.00376033]
[1646831596855,3.070878,2735.6,2735.1,0.91384]
[1646831597055,0.029168,2735.5,2735.3,0.00376033]
[1646831597255,1.241911,2735.6,2735.4,0.91374]
[1646831597509,0.943078,2735.6,2735.4,0.91374]
[1646831598303,0.943078,2735.6,2735.3,0.90114362]
[1646831598499,0.943078,2735.6,2735.4,0.89738326]
[1646831601004,0.943078,2735.6,2735.3,0.90101953]
[1646831601253,0.029168,2735.5,2735.3,0.00363627]
[1646831601458,0.029168,2735.5,2735.3,0.90101953]
[1646831601658,0.91391,2735.6,2735.3,0.89738326]
[1646831601856,0.029168,2735.5,2735.3,0.9010195]
[1646831602056,0.029168,2735.5,2735.3,0.00363624]
[1646831602458,0.029168,2735.5,2735.3,0.9010195]
[1646831602658,0.029168,2735.5,2735.3,0.00363624]
[1646831602858,0.029168,2735.5,2735.2,0.89738326]
[1646831603058,0.029168,2735.5,2735.3,0.00350511]
[1646831603660,0.029168,2735.4,2735.3,0.00350511]
[1646831604159,1.82804,2735.3,2735.0,0.89738326]
[1646831604360,1.857208,2735.3,2735.0,0.89738326]
[1646831604561,1.857208,2735.3,2735.2,0.00350515]
[1646831605011,1.857208,2735.3,2734.8,1.36656053]
[1646831605300,1.857198,2735.2,2734.9,0.146426]
[1646831605500,0.943178,2735.2,2735.1,0.00228448]
[1646831605705,4.743178,2735.2,2735.1,0.00228448]
[1646831605905,1.243178,2735.2,2735.1,0.00228448]
[1646831606108,2.243178,2735.2,2735.1,0.00228448]
[1646831606304,1.243178,2735.2,2735.1,0.00228448]
[1646831606505,1.21401,2735.2,2734.8,1.35253781]
[1646831606707,1.243178,2735.2,2734.8,1.35253781]
[1646831606904,1.21401,2735.2,2735.0,0.00341276]
[1646831607106,1.21401,2735.2,2735.0,0.91730276]
[1646831607807,1.21401,2735.2,2735.0,0.91389]
[1646831608005,1.21401,2735.2,2735.0,0.9173028]
[1646831608408,0.3,2735.2,2735.0,0.9173028]
[1646831608611,0.3,2735.2,2735.0,2.26984061]
[1646831608857,0.028001,2735.3,2735.0,2.26984061]
[1646831609057,0.941811,2735.4,2735.1,1.35253781]
[1646831609256,0.028001,2735.5,2735.1,1.35253781]
[1646831609456,0.028001,2735.5,2735.1,3.18003781]
[1646831609858,0.028001,2735.5,2735.1,6.17843781]
[1646831610457,0.028001,2735.5,2735.1,4.8259]
[1646831612360,0.028001,2735.5,2735.1,6.17843781]
[1646831613915,0.91382,2735.6,2735.2,1.35253781]
[1646831614111,6.1412,2735.8,2735.5,0.89966257]
[1646831614315,1.0,2736.0,2735.6,2.00005722]
[1646831614513,1.0,2736.0,2735.6,1.10039465]
[1646831614711,1.0,2736.0,2735.6,2.00005722]
[1646831615012,0.91364,2735.9,2735.6,2.00005722]
[1646831615212,0.91364,2735.9,2735.6,1.10039465]
[1646831615413,0.91364,2735.9,2735.6,2.01398465]
[1646831615715,0.91364,2735.9,2735.6,2.91364722]
[1646831616112,0.91364,2735.9,2735.6,1.81325257]
[1646831616363,0.91364,2735.9,2735.6,0.91359]
[1646831616564,0.91364,2735.9,2735.6,1.81325257]
[1646831617361,0.91364,2735.9,2735.7,0.89966257]
[1646831617862,0.91364,2735.9,2735.7,1.97047467]
[1646831619764,0.91364,2735.9,2735.8,0.89966257]
[1646831622109,0.91364,2735.9,2735.7,0.89966257]
[1646831622710,0.3,2736.0,2735.7,0.89966257]
[1646831622910,1.21354,2736.1,2735.8,0.89966257]
[1646831623510,1.21354,2736.1,2735.8,2.72671257]
[1646831623757,2.12718,2736.1,2735.8,0.89966257]
[1646831623956,2.12718,2736.1,2735.7,0.89966257]
[1646831624358,2.12718,2736.1,2735.5,1.35253781]
[1646831624555,2.12718,2736.1,2735.4,3.07948038]
[1646831624757,2.12718,2736.1,2735.5,2.9984]
[1646831624955,2.12718,2736.1,2735.5,4.35093781]
[1646831625156,2.12718,2736.1,2735.6,1.02336385]
[1646831625555,2.12718,2736.1,2735.7,0.91366]
[1646831626056,1.21354,2736.1,2735.7,0.91366]
[1646831628306,1.21354,2736.1,2735.7,3.91206]
[1646831628507,1.21354,2736.1,2735.7,5.26459781]
[1646831629914,0.91354,2736.1,2735.7,5.56459781]
[1646831630114,0.00334213,2736.3,2735.9,1.35253781]
[1646831630314,0.00334213,2736.3,2736.0,1.35833]
[1646831630513,0.00334213,2736.3,2736.1,1.9984]
[1646831630713,5.00634717,2737.3,2736.2,0.445]
[1646831630913,1.1613,2737.4,2736.8,1.09538846]
[1646831631761,1.82643,2737.5,2736.9,0.91322]
[1646831631961,0.00334147,2737.2,2736.9,0.91322]
[1646831632760,0.00334147,2737.2,2737.1,2.9984]
[1646831632962,0.91314,2737.4,2737.2,0.9131]
[1646831633563,0.3,2737.5,2737.2,0.9131]
[1646831633763,1.1613,2737.7,2737.2,0.9131]
[1646831634162,0.91306,2737.8,2737.2,0.9131]
[1646831634363,0.00351504,2737.6,2737.2,0.9131]
[1646831634563,0.00351504,2737.6,2737.4,2.9984]
[1646831634769,0.00351504,2737.6,2737.5,0.91295]
[1646831635413,5.83407,2738.2,2737.5,0.91295]
[1646831635610,0.00351495,2737.7,2737.5,0.91295]
[1646831636612,0.91296,2738.0,2737.5,0.91295]
[1646831636813,0.91296,2738.0,2737.8,0.8805247]
[1646831637012,7.66002,2738.2,2737.8,1.7934647]
[1646831637013,1.185,2738.2,2737.8,1.7934647]
[1646831637213,0.91289,2738.3,2737.8,1.7934647]
[1646831637613,0.91289,2738.3,2737.9,2.9984]
[1646831638014,0.00351285,2738.2,2737.9,2.9984]
[1646831639055,4.41289,2738.3,2737.9,2.9984]
[1646831639255,1.82948055,2738.2,2737.9,2.9984]
[1646831640062,3.5,2738.1,2737.9,2.9984]
[1646831640263,3.5,2738.1,2737.9,1.39204435]
[1646831640264,6.3263578,2738.1,2737.9,1.39204435]
[1646831640460,3.5,2738.0,2737.9,1.39204435]
[1646831640663,6.5,2737.9,2737.3,3.11727886]
[1646831640863,5.3267349,2737.8,2737.3,3.11727886]
[1646831641062,5.6267349,2737.8,2736.8,1.9984]
[1646831641260,6.6267349,2737.8,2736.8,1.9984]
[1646831641460,8.4534847,2737.8,2736.8,1.9984]
[1646831641667,0.00351185,2737.7,2736.8,1.9984]
[1646831642060,2.74391185,2737.7,2736.8,1.9984]
[1646831642261,0.9134186,2737.4,2736.8,1.9984]
[1646831642511,2.74023,2737.3,2736.8,1.9984]
[1646831642912,3.74023,2737.3,2736.8,1.9984]
[1646831644118,0.00351226,2737.2,2736.8,1.9984]
[1646831644915,3.74023,2737.3,2736.8,1.9984]
[1646831645116,0.91334,2737.2,2736.8,1.9984]
[1646831645320,0.00351243,2737.1,2736.8,1.9984]
[1646831646361,0.91334,2737.2,2736.8,1.9984]
[1646831646565,0.00351247,2737.1,2736.9,0.91325]
[1646831647362,0.91318,2737.5,2736.9,0.91325]
[1646831647562,0.00123497,2737.1,2736.9,0.91325]
[1646831647763,0.00123497,2737.1,2736.9,1.21325]
[1646831648562,4.1156,2737.8,2736.9,1.21325]
[1646831648763,5.02865,2737.8,2737.1,0.91307]
[1646831649062,3.89745,2737.8,2737.1,0.91307]
[1646831650108,0.0035149,2737.6,2737.1,0.91307]
[1646831650407,0.0035149,2737.6,2737.3,1.16954502]
[1646831650613,0.9166949,2737.6,2737.3,1.16954502]
[1646831650808,1.82638,2737.5,2737.3,1.16954502]
[1646831651208,2.12638,2737.5,2737.3,1.16954502]
[1646831652512,2.12994598,2737.5,2737.3,1.16954502]
[1646831653314,2.12638,2737.5,2737.3,1.16954502]
[1646831653769,2.12994598,2737.5,2737.3,1.16954502]
[1646831654160,2.12994598,2737.5,2737.1,0.91307]
[1646831654360,2.12994598,2737.5,2737.0,3.0]
[1646831654563,2.12638,2737.5,2737.0,3.0]
[1646831655060,2.12638,2737.5,2736.9,3.10948256]
[1646831655061,0.00356606,2737.4,2736.9,3.10948256]
[1646831655261,1.82669,2737.3,2736.9,3.10948256]
[1646831655562,2.74003,2737.3,2736.9,3.10948256]
[1646831656062,0.00351162,2737.2,2736.9,3.10948256]
[1646831656462,1.83013162,2737.2,2736.9,3.10948256]
[1646831657062,2.73991,2737.2,2736.8,3.38323463]
[1646831657263,2.74342167,2737.2,2736.8,3.06958902]
[1646831657515,3.04342167,2737.2,2736.8,3.06958902]
[1646831657916,2.74342167,2737.2,2736.8,3.06958902]
[1646831658118,1.82662,2737.1,2736.8,3.06958902]
[1646831658323,2.12662,2737.1,2736.8,3.06958902]
[1646831658527,2.13013171,2737.1,2736.8,3.06958902]
[1646831658724,2.13013171,2737.1,2736.8,1.9984]
[1646831659323,3.0400198,2737.1,2736.8,1.9984]
[1646831659523,6.5400198,2737.1,2736.3,4.851221]
[1646831659723,0.91348,2736.9,2736.3,4.25388468]
[1646831660025,0.91351,2736.8,2736.3,1.22938368]
[1646831660423,0.91351,2736.8,2736.1,2.72573828]
[1646831660825,0.00351577,2736.7,2736.1,2.72573828]
[1646831661027,2.74413577,2736.7,2736.3,1.9984]
[1646831661266,2.74413577,2736.7,2736.3,2.91183]
[1646831661267,3.04413577,2736.7,2736.3,2.91183]
[1646831661460,2.13059577,2736.7,2736.3,2.91183]
[1646831661660,2.13059577,2736.7,2736.4,1.0296484]
[1646831661860,2.12708,2736.7,2736.4,1.0296484]
[1646831662061,0.00351582,2736.6,2736.4,1.0296484]
[1646831663163,2.12708,2736.7,2736.6,0.00153615]
[1646831665149,0.3,2736.7,2736.6,0.00153615]
[1646831665347,0.00351546,2736.8,2736.7,0.91318]
[1646831665545,0.91325,2737.1,2736.7,0.91318]
[1646831665745,0.00351546,2736.8,2736.7,0.91318]
[1646831666751,1.21325,2737.1,2736.7,0.91318]
[1646831666955,0.00351539,2736.9,2736.7,3.91318]
[1646831667755,0.00351539,2736.9,2736.7,4.81211828]
[1646831667956,0.3,2737.1,2736.7,4.81211828]
[1646831668154,0.00351534,2736.9,2736.7,4.81211828]
[1646831668555,0.00351534,2736.9,2736.8,0.89893828]
[1646831668775,0.00351534,2736.9,2736.8,1.8263]
[1646831668965,0.91314,2737.4,2736.8,1.8263]
[1646831669165,0.91314,2737.4,2736.8,2.72523828]
[1646831669467,0.0035153,2737.0,2736.8,2.72523828]
[1646831670267,0.91314,2737.4,2736.9,3.0]
[1646831670469,0.91314,2737.4,2737.0,0.91314]
[1646831670670,2.12623,2737.6,2737.0,0.91314]
[1646831671172,7.00113,2737.8,2737.1,3.0]
[1646831671375,7.00113,2737.8,2737.2,1.13584077]
[1646831671376,0.9118383,2737.8,2737.2,1.13584077]
[1646831671570,3.5571,2738.0,2737.2,1.13584077]
[1646831671768,0.00351492,2737.4,2737.2,1.13584077]
[1646831671967,0.00351492,2737.4,2737.2,1.58084077]
[1646831672267,0.00351492,2737.4,2737.2,2.47977905]
[1646831672721,3.5571,2738.0,2737.9,1.06364268]
[1646831672921,1.21294,2738.1,2737.9,1.06364268]
[1646831673120,1.21294,2738.1,2737.9,1.97649268]
[1646831673720,0.91294,2738.1,2737.9,1.97649268]
[1646831674122,0.91645433,2738.1,2737.9,1.97649268]
[1646831674521,0.91645433,2738.1,2737.9,0.91285]
[1646831674722,3.5,2738.0,2737.5,1.850411]
[1646831674921,5.32623,2738.0,2737.2,0.89893828]
[1646831675121,6.32623,2738.0,2737.2,0.89893828]
[1646831675322,0.9131739,2737.9,2737.2,0.89893828]
[1646831675724,4.4131739,2737.9,2737.1,3.83505928]
[1646831676121,1.82647,2737.8,2737.1,2.936121]
[1646831676366,0.91333,2737.5,2736.9,0.89893828]
[1646831676571,4.71333,2737.5,2736.9,0.89893828]
[1646831676766,1.21333,2737.5,2736.9,0.89893828]
[1646831676967,2.21333,2737.5,2736.9,0.89893828]
[1646831677368,1.21333,2737.5,2737.0,1.81218828]
[1646831677570,1.21333,2737.5,2737.1,0.89893828]
[1646831677769,0.00351498,2737.3,2737.1,0.89893828]
[1646831677968,0.00351498,2737.3,2737.1,1.77880432]
[1646831678568,0.00351498,2737.3,2737.0,0.89893828]
[1646831678770,1.82643,2737.4,2737.0,0.89893828]
[1646831678968,0.00351498,2737.3,2737.0,0.89893828]
[1646831679368,0.00351498,2737.3,2737.0,0.89813127]
[1646831679771,0.91682498,2737.3,2737.0,0.89813127]
[1646831680008,0.91331,2737.3,2737.0,0.89813127]
[1646831680210,0.00351502,2737.3,2737.0,0.89813127]
[1646831680813,2.99323522,2737.4,2737.0,0.89813127]
[1646831681014,0.91328,2737.3,2737.0,0.89813127]
[1646831682015,2.7400858,2737.3,2736.8,1.9984]
[1646831682415,3.7400858,2737.3,2736.8,1.9984]
[1646831682619,3.5,2737.2,2736.8,1.9984]
[1646831682817,4.8,2737.2,2736.6,0.00153615]
[1646831683017,1.8271297,2737.1,2736.6,0.00153615]
[1646831683216,3.5,2737.0,2736.6,0.00153615]
[1646831683416,5.3270937,2737.0,2736.6,0.00153615]
[1646831683616,1.0,2737.0,2736.6,0.00153615]
[1646831683896,1.21357,2737.1,2736.6,0.00153615]
[1646831684094,0.9135343,2737.0,2736.6,0.00153615]
[1646831684293,0.91356,2736.9,2736.6,0.00153615]
[1646831684497,2.74037,2736.9,2736.6,0.00153615]
[1646831685095,3.74037,2736.9,2736.6,0.00153615]
[1646831686496,3.74037,2736.9,2736.6,0.91488615]
[1646831686698,2.82681,2736.9,2736.6,0.91488615]
[1646831687100,1.82681,2736.9,2736.6,0.91488615]
[1646831687298,2.82681,2736.9,2736.6,0.91488615]
[1646831687514,1.82681,2736.9,2736.6,0.91488615]
[1646831687714,2.82681,2736.9,2736.6,0.00153615]
[1646831687913,1.82681,2736.9,2736.6,0.00153615]
[1646831688114,2.82681,2736.9,2736.6,0.00153615]
[1646831688314,5.32681,2736.9,2736.6,0.90182673]
[1646831688516,2.82681,2736.9,2736.6,0.90182673]
[1646831688715,1.82681,2736.9,2736.6,0.90182673]
[1646831688914,2.82681,2736.9,2736.6,0.90182673]
[1646831689516,1.82681,2736.9,2736.6,0.90182673]
[1646831689720,1.82681,2736.9,2736.6,1.81519673]
[1646831689915,1.21339,2737.0,2736.6,1.81519673]
[1646831690516,1.21339,2737.0,2736.7,0.90029058]
[1646831690720,1.21339,2737.0,2736.6,1.81519673]
[1646831690916,1.21339,2737.0,2736.7,0.90029058]
[1646831691364,2.1267269,2737.0,2736.7,0.90029058]
[1646831691763,2.1267269,2737.0,2736.6,1.81519673]
[1646831691965,1.28140122,2737.0,2736.8,0.67520491]
[1646831692163,1.28140122,2737.0,2736.6,0.91490615]
[1646831692367,1.28140122,2737.0,2736.6,1.81519673]
[1646831692963,0.91333,2737.2,2736.7,0.90029058]
[1646831692964,1.8265873,2737.2,2736.7,0.90029058]
[1646831693165,0.9132573,2737.2,2736.7,0.92519058]
[1646831693370,1.2132573,2737.2,2736.7,0.92519058]
[1646831693565,0.9132573,2737.2,2736.7,0.92519058]
[1646831694165,2.1265673,2737.2,2736.7,0.92519058]
[1646831694464,2.4265673,2737.2,2736.7,0.92519058]
[1646831695107,2.1265673,2737.2,2736.7,0.92519058]
[1646831695509,1.8265673,2737.2,2736.7,0.92519058]
[1646831695710,2.1265673,2737.2,2736.7,0.92519058]
[1646831696108,2.1265673,2737.2,2736.7,0.91924441]
[1646831696109,1.8265673,2737.2,2736.7,0.91924441]
[1646831696311,2.1265673,2737.2,2736.7,0.91924441]
[1646831697613,3.9533166,2737.2,2736.7,0.91924441]
[1646831697813,4.9533166,2737.2,2736.7,0.91924441]
[1646831698014,1.82675,2737.1,2736.7,0.91924441]
[1646831698216,2.12675,2737.1,2736.7,0.91924441]
[1646831698414,2.12675,2737.1,2736.7,0.0249]
[1646831698865,2.12675,2737.1,2736.8,0.91329]
[1646831699465,2.12675,2737.1,2736.7,0.0249]
[1646831700467,0.3,2737.1,2736.7,0.9382]
[1646831700870,2.1265673,2737.2,2736.7,0.9382]
[1646831701070,0.9132573,2737.2,2736.7,0.9382]
[1646831702275,2.7397873,2737.2,2736.7,0.9382]
[1646831702714,2.7397873,2737.2,2736.8,0.027496]
[1646831703110,3.6530473,2737.2,2737.1,1.226781]
[1646831703312,0.3,2737.2,2737.1,1.226781]
[1646831703513,0.91326,2737.3,2737.1,1.253578]
[1646831704512,0.00351479,2737.4,2737.1,1.253578]
[1646831704910,0.00351479,2737.4,2737.2,1.82603]
[1646831705110,2.12628,2737.6,2737.2,1.82603]
[1646831705511,0.00351482,2737.4,2737.2,1.82603]
[1646831706365,0.91302,2737.5,2737.2,1.82603]
[1646831706366,1.21302,2737.5,2737.2,1.82603]
[1646831706565,0.00351484,2737.4,2737.2,1.82603]
[1646831707565,1.21302,2737.5,2737.2,1.82603]
[1646831707765,0.00351483,2737.4,2737.2,1.82603]
[1646831708766,1.21302,2737.5,2737.2,1.82603]
[1646831708967,0.00351483,2737.4,2737.2,1.82603]
[1646831709168,1.5930824,2737.4,2737.2,1.82603]
[1646831709367,1.58956757,2737.3,2737.2,1.82603]
[1646831711218,1.58956757,2737.3,2737.2,2.72646365]
[1646831712017,0.32978252,2737.3,2737.2,2.80176376]
[1646831712222,0.32978252,2737.3,2737.2,2.72646365]
[1646831712719,0.00330537,2737.4,2737.3,2.5]
[1646831712920,0.00330537,2737.4,2737.3,6.90043365]
[1646831713122,0.00330537,2737.4,2737.3,14.20673365]
[1646831713521,0.91291,2738.0,2737.3,14.57233365]
[1646831713769,0.00330535,2737.5,2737.4,0.91292]
[1646831714573,0.00330535,2737.5,2737.4,5.31335365]
[1646831714772,0.91291,2738.0,2737.4,8.31335365]
[1646831714972,0.00332635,2737.6,2737.4,8.33838065]
[1646831715173,0.00332635,2737.6,2737.4,8.70398065]
[1646831715373,0.00332635,2737.6,2737.4,7.803547]
[1646831715977,0.91291,2738.0,2737.4,1.303547]
[1646831716176,0.91301,2737.8,2737.6,3.0]
[1646831716579,0.91301,2737.8,2737.4,0.025027]
[1646831717378,0.00332622,2737.7,2737.4,0.025027]
[1646831717618,0.91312,2737.6,2737.4,0.025027]
[1646831717819,1.21312,2737.6,2737.3,7.3063]
[1646831718620,1.21644671,2737.6,2737.3,7.3063]
[1646831719524,1.21312,2737.6,2737.3,7.3063]
[1646831719920,3.04280671,2737.6,2737.3,7.3063]
[1646831720119,3.34280671,2737.6,2737.3,7.3063]
[1646831720319,4.34280671,2737.6,2737.3,7.3063]
[1646831720522,3.34280671,2737.6,2737.3,7.3063]
[1646831720721,4.33948,2737.6,2737.3,7.3063]
[1646831721023,3.34280671,2737.6,2737.3,7.3063]
[1646831721263,4.34280671,2737.6,2737.3,7.3063]
[1646831721467,3.34280671,2737.6,2737.3,7.3063]
[1646831721666,1.82696,2737.4,2737.0,0.024501]
[1646831722066,0.91347,2737.3,2737.0,0.024501]
[1646831722865,0.91347,2737.3,2736.9,1.9984]
[1646831723067,0.9134011,2737.2,2736.9,1.9984]
[1646831723868,0.9134011,2737.2,2736.8,0.90043365]
[1646831724669,1.2134011,2737.2,2736.8,0.90043365]
[1646831724869,1.82692,2737.1,2736.8,0.90043365]
[1646831725114,3.04038,2737.1,2736.7,0.92493465]
[1646831725316,3.04038,2737.1,2736.8,0.90043365]
[1646831725513,3.04038,2737.1,2736.7,0.024501]
[1646831725514,4.04038,2737.1,2736.7,0.92493465]
[1646831725715,0.9134374,2736.9,2736.7,0.92493465]
[1646831726115,0.9134374,2736.9,2736.7,0.90043365]
[1646831726519,0.3,2737.0,2736.7,0.90043365]
[1646831726722,0.91323,2737.3,2736.8,0.90043365]
[1646831726921,0.91323,2737.3,2736.8,0.92516665]
[1646831728122,0.91323,2737.2,2736.8,0.92516665]
[1646831728523,0.91323,2737.2,2736.9,0.91323]
[1646831729070,0.3,2737.3,2736.9,0.938502]
[1646831729267,1.4731,2737.5,2736.9,0.938502]
[1646831729467,0.00332407,2737.4,2736.9,0.938502]
[1646831729667,0.00332407,2737.4,2737.0,0.027796]
[1646831730268,4.2994459,2737.5,2737.0,0.027796]
[1646831730570,0.00332413,2737.4,2737.0,0.027796]
[1646831731168,0.91328,2737.3,2737.0,0.027796]
[1646831731773,2.7399883,2737.3,2737.0,0.027796]
[1646831732172,4.1381883,2737.3,2737.0,0.027796]
[1646831732525,0.9133525,2737.2,2737.0,0.027796]
[1646831732712,2.7400425,2737.2,2737.0,0.027796]
[1646831733112,1.8266025,2737.2,2737.0,0.027796]
[1646831733317,0.91325,2737.2,2737.0,0.027796]
[1646831736667,0.91325,2737.2,2736.8,0.92516665]
[1646831736870,0.91325,2737.2,2736.8,0.024733]
[1646831737367,0.91325,2737.2,2736.9,0.027795]
[1646831740532,0.91325,2737.2,2736.9,0.941055]
[1646831740730,0.91325,2737.2,2736.9,1.84148865]
[1646831741738,0.91325,2737.2,2736.9,0.027795]
[1646831743535,2.74002,2737.2,2736.9,0.027795]
[1646831743768,3.03880219,2737.2,2736.9,0.027795]
[1646831744570,1.21325,2737.2,2736.9,0.027795]
[1646831744777,0.91325,2737.2,2737.1,0.029168]
[1646831746376,0.91325,2737.2,2737.1,0.056515]
[1646831747177,0.20896868,2737.2,2737.1,0.056515]
[1646831747816,0.00332449,2737.4,2737.1,4.45694865]
[1646831748017,0.00332449,2737.4,2737.3,0.029168]
[1646831748417,10.0917,2737.9,2737.3,0.029168]
[1646831748418,4.0332,2737.9,2737.3,0.029168]
[1646831748615,0.00103582,2737.4,2737.3,0.029168]
[1646831748817,0.00103582,2737.4,2737.3,0.89967756]
[1646831749421,3.05867,2737.9,2737.3,0.89967756]
[1646831749620,4.05867,2737.9,2737.4,0.028712]
[1646831749819,0.00103584,2737.5,2737.4,0.028712]
[1646831750223,0.00103584,2737.5,2737.4,1.162332]
[1646831750619,1.18343584,2737.9,2737.4,1.462332]
[1646831750817,3.643,2738.0,2737.6,0.913]